[Event "*** Titled Tuesday Blitz"]
[Site "Chess.com"]
[Date "2020.11.03"]
[Round "9"]
[White "Sibelephant"]
[Black "dropstoneDP"]
[Result "1-0"]
[WhiteElo "3088"]
[BlackElo "2909"]
[TimeControl "180+1"]
[EndTime "11:48:58 PST"]
[Termination "Sibelephant won on time"]

1. Nf3 {[%clk 0:03:00]} 1... Nf6 {[%clk 0:03:00.4]} 2. g3 {[%clk 0:03:00]} 2...
d5 {[%clk 0:03:00.7]} 3. Bg2 {[%clk 0:02:59.5]} 3... c5 {[%clk 0:03:01.4]} 4.
O-O {[%clk 0:02:55.8]} 4... g6 {[%clk 0:03:02]} 5. b3 {[%clk 0:02:56.1]} 5...
Nc6 {[%clk 0:03:01.4]} 6. Bb2 {[%clk 0:02:56.1]} 6... Bg7 {[%clk 0:03:01.6]} 7.
Ne5 {[%clk 0:02:54.1]} 7... Nxe5 {[%clk 0:03:01.1]} 8. Bxe5 {[%clk 0:02:53.8]}
8... O-O {[%clk 0:03:01.5]} 9. e3 {[%clk 0:02:41]} 9... Bg4 {[%clk 0:03:00.2]}
10. Qc1 {[%clk 0:02:40.7]} 10... Qd7 {[%clk 0:02:54.4]} 11. Qb2 {[%clk
0:02:35.1]} 11... Bh3 {[%clk 0:02:44.9]} 12. d3 {[%clk 0:02:34.1]} 12... Rfd8
{[%clk 0:02:38.3]} 13. Nd2 {[%clk 0:02:33.1]} 13... d4 {[%clk 0:02:35.6]} 14.
Nf3 {[%clk 0:02:10]} 14... Bxg2 {[%clk 0:01:44.4]} 15. Kxg2 {[%clk 0:02:09.9]}
15... Nh5 {[%clk 0:01:14.6]} 16. Bxg7 {[%clk 0:02:06.9]} 16... Nxg7 {[%clk
0:01:15.5]} 17. Rae1 {[%clk 0:02:01.9]} 17... f6 {[%clk 0:01:13.4]} 18. Nd2
{[%clk 0:01:46.8]} 18... e5 {[%clk 0:01:12.3]} 19. e4 {[%clk 0:01:40.4]} 19...
Rf8 {[%clk 0:01:07.8]} 20. f4 {[%clk 0:01:32.7]} 20... Rae8 {[%clk 0:01:08.4]}
21. b4 {[%clk 0:01:23]} 21... cxb4 {[%clk 0:01:03.8]} 22. Qxb4 {[%clk
0:01:23.2]} 22... exf4 {[%clk 0:01:01.3]} 23. Rxf4 {[%clk 0:01:22.7]} 23... f5
{[%clk 0:01:01.1]} 24. Ref1 {[%clk 0:00:57.8]} 24... Rc8 {[%clk 0:00:51.5]} 25.
Qb3+ {[%clk 0:00:53.5]} 25... Qe6 {[%clk 0:00:30]} 26. R4f2 {[%clk 0:00:29.5]}
26... Qxb3 {[%clk 0:00:19.5]} 27. Nxb3 {[%clk 0:00:29.5]} 27... fxe4 {[%clk
0:00:20]} 28. Rxf8+ {[%clk 0:00:26]} 28... Rxf8 {[%clk 0:00:20.9]} 29. Rxf8+
{[%clk 0:00:26.2]} 29... Kxf8 {[%clk 0:00:21.8]} 30. dxe4 {[%clk 0:00:26.6]}
30... Ne6 {[%clk 0:00:21.8]} 31. Kf3 {[%clk 0:00:27]} 31... Ke7 {[%clk 0:00:18]}
32. e5 {[%clk 0:00:27.3]} 32... Ng5+ {[%clk 0:00:04.9]} 33. Kf4 {[%clk
0:00:27.5]} 33... Ne6+ {[%clk 0:00:05.3]} 34. Ke4 {[%clk 0:00:27.5]} 34... Ng5+
{[%clk 0:00:05.7]} 35. Kd5 {[%clk 0:00:26.4]} 35... Nf3 {[%clk 0:00:04.5]} 36.
h4 {[%clk 0:00:26.4]} 1-0

[Event "*** Titled Tuesday Blitz"]
[Site "Chess.com"]
[Date "2020.11.03"]
[Round "9"]
[White "Heineccius"]
[Black "Xeniya2005"]
[Result "1-0"]
[WhiteElo "2535"]
[BlackElo "2393"]
[TimeControl "180+1"]
[EndTime "11:49:01 PST"]
[Termination "Heineccius won by resignation"]

1. d4 {[%clk 0:03:00.9]} 1... d5 {[%clk 0:02:58.8]} 2. c4 {[%clk 0:03:00.4]}
2... e6 {[%clk 0:02:58.8]} 3. Nc3 {[%clk 0:02:59.5]} 3... c5 {[%clk 0:02:58.5]}
4. cxd5 {[%clk 0:02:58.3]} 4... exd5 {[%clk 0:02:58.5]} 5. Nf3 {[%clk
0:02:56.6]} 5... Nf6 {[%clk 0:02:57.8]} 6. g3 {[%clk 0:02:56.2]} 6... Nc6 {[%clk
0:02:57]} 7. Bg2 {[%clk 0:02:55.8]} 7... Be6 {[%clk 0:02:48.7]} 8. O-O {[%clk
0:02:50.2]} 8... cxd4 {[%clk 0:02:47.9]} 9. Nxd4 {[%clk 0:02:49.2]} 9... Bc5
{[%clk 0:02:47.2]} 10. Be3 {[%clk 0:02:38]} 10... Qe7 {[%clk 0:02:34.8]} 11.
Nxc6 {[%clk 0:02:26]} 11... bxc6 {[%clk 0:02:33.9]} 12. Bxc5 {[%clk 0:02:16.8]}
12... Qxc5 {[%clk 0:02:33]} 13. Rc1 {[%clk 0:02:16.6]} 13... Qd6 {[%clk
0:02:27.1]} 14. Na4 {[%clk 0:01:50.6]} 14... O-O {[%clk 0:02:19.7]} 15. Qd4
{[%clk 0:01:46.9]} 15... Nd7 {[%clk 0:02:06.7]} 16. e4 {[%clk 0:01:38.1]} 16...
Rab8 {[%clk 0:01:57.7]} 17. a3 {[%clk 0:01:16.9]} 17... a5 {[%clk 0:01:33.9]}
18. Rfd1 {[%clk 0:01:09.3]} 18... Rfd8 {[%clk 0:00:58.6]} 19. exd5 {[%clk
0:01:03.7]} 19... cxd5 {[%clk 0:00:56.9]} 20. Rd2 {[%clk 0:00:47.5]} 20... Ne5
{[%clk 0:00:40.1]} 21. Rc5 {[%clk 0:00:32.9]} 21... Nc6 {[%clk 0:00:20.3]} 22.
Qc3 {[%clk 0:00:28.3]} 22... Ne7 {[%clk 0:00:19.8]} 23. Rxa5 {[%clk 0:00:20.4]}
23... d4 {[%clk 0:00:19.6]} 24. Qc5 {[%clk 0:00:19.4]} 24... g6 {[%clk
0:00:12.2]} 25. Qxd6 {[%clk 0:00:18.5]} 25... Rxd6 {[%clk 0:00:13.1]} 26. Nc5
{[%clk 0:00:18.9]} 26... Bf5 {[%clk 0:00:12.8]} 27. b4 {[%clk 0:00:18.3]} 27...
Be6 {[%clk 0:00:06.6]} 28. Ne4 {[%clk 0:00:17.4]} 28... Rdd8 {[%clk 0:00:05.9]}
29. Ra7 {[%clk 0:00:14.4]} 29... Kg7 {[%clk 0:00:05.4]} 30. Rxe7 {[%clk
0:00:13.1]} 30... Ra8 {[%clk 0:00:05.6]} 31. Nc5 {[%clk 0:00:12]} 31... Rxa3
{[%clk 0:00:05.1]} 32. Nxe6+ {[%clk 0:00:10.6]} 1-0

[Event "*** Titled Tuesday Blitz"]
[Site "Chess.com"]
[Date "2020.11.03"]
[Round "9"]
[White "HouseOfDurin"]
[Black "kot60"]
[Result "1-0"]
[WhiteElo "2200"]
[BlackElo "2360"]
[TimeControl "180+1"]
[EndTime "11:49:01 PST"]
[Termination "HouseOfDurin won by resignation"]

1. d4 {[%clk 0:03:00.9]} 1... Nf6 {[%clk 0:02:57.2]} 2. Bg5 {[%clk 0:03:01.3]}
2... g6 {[%clk 0:02:56.3]} 3. Bxf6 {[%clk 0:03:01.3]} 3... exf6 {[%clk
0:02:56.6]} 4. c4 {[%clk 0:03:02]} 4... f5 {[%clk 0:02:56.7]} 5. Nc3 {[%clk
0:03:02]} 5... Bg7 {[%clk 0:02:57.2]} 6. g3 {[%clk 0:03:02.1]} 6... O-O {[%clk
0:02:56.2]} 7. e3 {[%clk 0:03:02.1]} 7... d6 {[%clk 0:02:54.7]} 8. Nge2 {[%clk
0:03:00.7]} 8... c5 {[%clk 0:02:54.8]} 9. Bg2 {[%clk 0:03:00.3]} 9... Nc6 {[%clk
0:02:54.5]} 10. O-O {[%clk 0:02:59]} 10... Qa5 {[%clk 0:02:46.9]} 11. a3 {[%clk
0:02:48.4]} 11... a6 {[%clk 0:02:43]} 12. Nd5 {[%clk 0:02:39.8]} 12... Qd8
{[%clk 0:02:29.8]} 13. b4 {[%clk 0:02:31.1]} 13... cxd4 {[%clk 0:02:22.8]} 14.
exd4 {[%clk 0:02:19.6]} 14... Ne7 {[%clk 0:02:20]} 15. Qd3 {[%clk 0:02:01.5]}
15... Rb8 {[%clk 0:02:14.7]} 16. a4 {[%clk 0:01:50.7]} 16... Be6 {[%clk
0:01:57]} 17. Nxe7+ {[%clk 0:01:42.5]} 17... Qxe7 {[%clk 0:01:56.1]} 18. Nf4
{[%clk 0:01:19.9]} 18... Rfc8 {[%clk 0:01:41.1]} 19. Rac1 {[%clk 0:01:18.5]}
19... Bd7 {[%clk 0:01:36]} 20. b5 {[%clk 0:01:16.5]} 20... axb5 {[%clk
0:01:35.2]} 21. axb5 {[%clk 0:01:17.4]} 21... Qd8 {[%clk 0:01:13.8]} 22. Rfd1
{[%clk 0:01:14.7]} 22... Bh6 {[%clk 0:01:11.2]} 23. Qf3 {[%clk 0:00:57.4]} 23...
Bxf4 {[%clk 0:00:53.7]} 24. Qxf4 {[%clk 0:00:56.7]} 24... Qf6 {[%clk 0:00:54.6]}
25. Bd5 {[%clk 0:00:46.8]} 25... b6 {[%clk 0:00:53.2]} 26. Ra1 {[%clk
0:00:40.9]} 26... g5 {[%clk 0:00:45.1]} 27. Qf3 {[%clk 0:00:39.4]} 27... Be6
{[%clk 0:00:44.3]} 28. Ra7 {[%clk 0:00:38.1]} 28... Re8 {[%clk 0:00:35]} 29. h3
{[%clk 0:00:32.2]} 29... Re7 {[%clk 0:00:23]} 30. Rxe7 {[%clk 0:00:30.6]} 30...
Qxe7 {[%clk 0:00:23.1]} 31. Ra1 {[%clk 0:00:23.8]} 31... Qf6 {[%clk 0:00:22.3]}
32. Bxe6 {[%clk 0:00:20.2]} 32... Qxe6 {[%clk 0:00:19]} 33. Ra8 {[%clk 0:00:20]}
33... Rxa8 {[%clk 0:00:17.9]} 34. Qxa8+ {[%clk 0:00:20.9]} 34... Kg7 {[%clk
0:00:18.2]} 35. Qc6 {[%clk 0:00:20.4]} 35... Qe1+ {[%clk 0:00:16.6]} 36. Kg2
{[%clk 0:00:20.6]} 36... Qe4+ {[%clk 0:00:16.1]} 37. Qxe4 {[%clk 0:00:20]} 37...
fxe4 {[%clk 0:00:16.4]} 38. c5 {[%clk 0:00:18]} 38... dxc5 {[%clk 0:00:16.4]}
39. dxc5 {[%clk 0:00:18.1]} 39... e3 {[%clk 0:00:16]} 40. fxe3 {[%clk
0:00:16.7]} 40... bxc5 {[%clk 0:00:15.8]} 41. b6 {[%clk 0:00:17.3]} 41... c4
{[%clk 0:00:16.7]} 42. b7 {[%clk 0:00:17.8]} 42... c3 {[%clk 0:00:17.6]} 43.
b8=Q {[%clk 0:00:18.2]} 43... c2 {[%clk 0:00:18.5]} 44. Qc7 {[%clk 0:00:18.5]}
44... c1=Q {[%clk 0:00:19.4]} 45. Qxc1 {[%clk 0:00:18.5]} 1-0

[Event "*** Titled Tuesday Blitz"]
[Site "Chess.com"]
[Date "2020.11.03"]
[Round "9"]
[White "swimmerchess"]
[Black "Jungle_Jaguar"]
[Result "1-0"]
[WhiteElo "2846"]
[BlackElo "2627"]
[TimeControl "180+1"]
[EndTime "11:49:02 PST"]
[Termination "swimmerchess won by resignation"]

1. e4 {[%clk 0:03:00.9]} 1... c5 {[%clk 0:02:59.4]} 2. Nf3 {[%clk 0:03:01]} 2...
d6 {[%clk 0:02:59.8]} 3. d4 {[%clk 0:03:01.1]} 3... cxd4 {[%clk 0:03:00.7]} 4.
Nxd4 {[%clk 0:03:02]} 4... Nf6 {[%clk 0:03:01.2]} 5. Nc3 {[%clk 0:03:02.7]} 5...
Nc6 {[%clk 0:03:01.8]} 6. Bc4 {[%clk 0:03:01.8]} 6... e6 {[%clk 0:03:01.8]} 7.
Be3 {[%clk 0:03:01.7]} 7... a6 {[%clk 0:02:59.8]} 8. Bb3 {[%clk 0:03:01]} 8...
Be7 {[%clk 0:03:00]} 9. O-O {[%clk 0:03:01]} 9... O-O {[%clk 0:02:57.7]} 10. f4
{[%clk 0:03:01.4]} 10... Qc7 {[%clk 0:02:54.6]} 11. Qf3 {[%clk 0:02:59.4]} 11...
Bd7 {[%clk 0:02:49.6]} 12. Rae1 {[%clk 0:02:55.4]} 12... Rfe8 {[%clk 0:02:49.2]}
13. Kh1 {[%clk 0:02:55]} 13... Rac8 {[%clk 0:02:39.5]} 14. f5 {[%clk 0:02:38.4]}
14... e5 {[%clk 0:02:37.2]} 15. Ne6 {[%clk 0:02:37.9]} 15... fxe6 {[%clk
0:01:58.5]} 16. fxe6 {[%clk 0:02:38.8]} 16... Kh8 {[%clk 0:01:58.5]} 17. exd7
{[%clk 0:02:36.7]} 17... Qxd7 {[%clk 0:01:59]} 18. Nd5 {[%clk 0:02:09]} 18...
Nxd5 {[%clk 0:01:48.4]} 19. Bxd5 {[%clk 0:02:09.9]} 19... Rf8 {[%clk 0:01:31.2]}
20. Qh5 {[%clk 0:02:05.3]} 20... Nd4 {[%clk 0:01:25.9]} 21. Bf7 {[%clk
0:01:16.7]} 21... Bf6 {[%clk 0:00:40.9]} 22. Bg6 {[%clk 0:01:15]} 22... h6
{[%clk 0:00:41.4]} 23. c3 {[%clk 0:00:30.7]} 23... Nc2 {[%clk 0:00:36]} 24. Bxh6
{[%clk 0:00:27.1]} 24... gxh6 {[%clk 0:00:33.3]} 25. Qxh6+ {[%clk 0:00:28]}
25... Kg8 {[%clk 0:00:33.8]} 26. Bf5 {[%clk 0:00:26.8]} 26... Qg7 {[%clk
0:00:32.5]} 27. Be6+ {[%clk 0:00:26.9]} 27... Rf7 {[%clk 0:00:32]} 28. Qxf6
{[%clk 0:00:25.9]} 28... Nxe1 {[%clk 0:00:18.2]} 29. Bxf7+ {[%clk 0:00:25.8]}
29... Kh8 {[%clk 0:00:15.8]} 30. Qh4+ {[%clk 0:00:24.5]} 30... Qh7 {[%clk
0:00:16.4]} 31. Qxe1 {[%clk 0:00:24.5]} 31... Rf8 {[%clk 0:00:15.9]} 32. Bd5
{[%clk 0:00:24.5]} 32... Rxf1+ {[%clk 0:00:09.6]} 33. Qxf1 {[%clk 0:00:25.4]}
33... Kg7 {[%clk 0:00:09.9]} 34. g3 {[%clk 0:00:24.8]} 34... Qh5 {[%clk
0:00:08.4]} 35. Kg2 {[%clk 0:00:24.7]} 35... Qg4 {[%clk 0:00:08.1]} 36. Qf7+
{[%clk 0:00:24.7]} 36... Kh6 {[%clk 0:00:07.7]} 37. Qf6+ {[%clk 0:00:24.8]}
37... Kh7 {[%clk 0:00:08]} 38. Qf5+ {[%clk 0:00:25.3]} 38... Qxf5 {[%clk
0:00:07.9]} 39. exf5 {[%clk 0:00:26.2]} 39... Kg7 {[%clk 0:00:08.6]} 40. Kf3
{[%clk 0:00:26.5]} 1-0

[Event "*** Titled Tuesday Blitz"]
[Site "Chess.com"]
[Date "2020.11.03"]
[Round "9"]
[White "vovachesss"]
[Black "Sokoloco"]
[Result "1-0"]
[WhiteElo "2664"]
[BlackElo "2446"]
[TimeControl "180+1"]
[EndTime "11:49:02 PST"]
[Termination "vovachesss won by resignation"]

1. e4 {[%clk 0:02:06.7]} 1... g6 {[%clk 0:02:59.3]} 2. h4 {[%clk 0:02:04.3]}
2... h5 {[%clk 0:02:57.3]} 3. d4 {[%clk 0:01:59]} 3... Bg7 {[%clk 0:02:56.7]} 4.
Nc3 {[%clk 0:01:59.1]} 4... d6 {[%clk 0:02:56.3]} 5. Nf3 {[%clk 0:01:58]} 5...
a6 {[%clk 0:02:56.5]} 6. a4 {[%clk 0:01:57.9]} 6... b6 {[%clk 0:02:52.1]} 7. Bc4
{[%clk 0:01:56.8]} 7... Nf6 {[%clk 0:02:48.1]} 8. Qe2 {[%clk 0:01:53.1]} 8... e6
{[%clk 0:02:22.9]} 9. Bg5 {[%clk 0:01:47.9]} 9... Qd7 {[%clk 0:02:17.3]} 10. e5
{[%clk 0:01:48.1]} 10... Ng4 {[%clk 0:02:09.5]} 11. exd6 {[%clk 0:01:42.5]}
11... cxd6 {[%clk 0:01:56.4]} 12. Nd5 {[%clk 0:01:33.4]} 12... Qc6 {[%clk
0:01:31.1]} 13. O-O {[%clk 0:01:23.8]} 13... Bb7 {[%clk 0:01:19.5]} 14. b4
{[%clk 0:00:46.4]} 14... Nd7 {[%clk 0:00:41.1]} 15. b5 {[%clk 0:00:43.4]} 15...
axb5 {[%clk 0:00:36.7]} 16. axb5 {[%clk 0:00:43.4]} 16... Qc8 {[%clk 0:00:33.9]}
17. Ne7 {[%clk 0:00:17.9]} 17... Qb8 {[%clk 0:00:33.5]} 18. Nc6 {[%clk
0:00:18.2]} 18... Bxc6 {[%clk 0:00:15.8]} 19. bxc6 {[%clk 0:00:19.1]} 19... Nf8
{[%clk 0:00:14.6]} 20. c7 {[%clk 0:00:18.8]} 20... Qc8 {[%clk 0:00:11.8]} 21.
Bb5+ {[%clk 0:00:16.9]} 21... Nd7 {[%clk 0:00:12.3]} 22. Rxa8 {[%clk 0:00:11]}
22... Qxa8 {[%clk 0:00:13.2]} 23. Qc4 {[%clk 0:00:06.9]} 23... Qc8 {[%clk
0:00:12.3]} 24. Qc6 {[%clk 0:00:07.1]} 24... Nf6 {[%clk 0:00:10.1]} 25. Bxf6
{[%clk 0:00:06.1]} 25... Bxf6 {[%clk 0:00:09.8]} 26. Ra1 {[%clk 0:00:06.9]}
26... Ke7 {[%clk 0:00:09.4]} 27. Ra7 {[%clk 0:00:04.8]} 27... e5 {[%clk
0:00:03.4]} 28. Ba6 {[%clk 0:00:05]} 28... Qxa6 {[%clk 0:00:02.3]} 29. Rxa6
{[%clk 0:00:05]} 29... exd4 {[%clk 0:00:03.1]} 30. c8=Q {[%clk 0:00:04.4]} 30...
Rxc8 {[%clk 0:00:03.5]} 31. Qxc8 {[%clk 0:00:05.3]} 1-0

[Event "*** Titled Tuesday Blitz"]
[Site "Chess.com"]
[Date "2020.11.03"]
[Round "9"]
[White "ClydeHillKid"]
[Black "rugbyclub"]
[Result "1-0"]
[WhiteElo "2358"]
[BlackElo "2210"]
[TimeControl "180+1"]
[EndTime "11:49:04 PST"]
[Termination "ClydeHillKid won by checkmate"]

1. e4 {[%clk 0:03:00.9]} 1... c5 {[%clk 0:02:58.8]} 2. Nf3 {[%clk 0:03:00.5]}
2... e6 {[%clk 0:02:59.3]} 3. d3 {[%clk 0:02:59.4]} 3... Nc6 {[%clk 0:02:58.1]}
4. g3 {[%clk 0:02:59.2]} 4... g6 {[%clk 0:02:58.3]} 5. Bg2 {[%clk 0:02:59.3]}
5... Bg7 {[%clk 0:02:58.9]} 6. O-O {[%clk 0:02:58.2]} 6... d6 {[%clk 0:02:59.4]}
7. c3 {[%clk 0:02:57.7]} 7... e5 {[%clk 0:02:57.7]} 8. Be3 {[%clk 0:02:57.3]}
8... f5 {[%clk 0:02:45.4]} 9. Nfd2 {[%clk 0:02:42.9]} 9... Nge7 {[%clk
0:02:37.5]} 10. a4 {[%clk 0:02:36.9]} 10... O-O {[%clk 0:02:36.1]} 11. Nc4
{[%clk 0:02:36.4]} 11... f4 {[%clk 0:02:33]} 12. Bd2 {[%clk 0:02:29.2]} 12... g5
{[%clk 0:02:31]} 13. Nba3 {[%clk 0:02:27.7]} 13... Be6 {[%clk 0:02:15.5]} 14.
Rb1 {[%clk 0:02:15.3]} 14... Qd7 {[%clk 0:02:09.7]} 15. b4 {[%clk 0:02:12.5]}
15... b6 {[%clk 0:02:09.3]} 16. b5 {[%clk 0:01:58.7]} 16... Nd8 {[%clk
0:02:05.2]} 17. a5 {[%clk 0:01:57.5]} 17... Bh3 {[%clk 0:02:03.2]} 18. axb6
{[%clk 0:01:55.9]} 18... Bxg2 {[%clk 0:02:00]} 19. Kxg2 {[%clk 0:01:54.4]} 19...
f3+ {[%clk 0:02:00.6]} 20. Kh1 {[%clk 0:01:54.5]} 20... Qh3 {[%clk 0:02:00.5]}
21. Rg1 {[%clk 0:01:54.7]} 21... Ne6 {[%clk 0:01:58]} 22. Nxd6 {[%clk
0:01:16.9]} 22... axb6 {[%clk 0:01:49.9]} 23. Nac4 {[%clk 0:01:03.5]} 23... Rf6
{[%clk 0:01:48.2]} 24. Qf1 {[%clk 0:00:47.7]} 24... Qh5 {[%clk 0:01:45.3]} 25.
Nxb6 {[%clk 0:00:29.8]} 25... Ra2 {[%clk 0:01:43.7]} 26. Be3 {[%clk 0:00:22.4]}
26... Rh6 {[%clk 0:01:02.7]} 27. h4 {[%clk 0:00:20.6]} 27... gxh4 {[%clk
0:01:02.8]} 28. g4 {[%clk 0:00:20]} 28... Qg6 {[%clk 0:00:58.8]} 29. Bxh6 {[%clk
0:00:18.1]} 29... Qxh6 {[%clk 0:00:58.4]} 30. Nf5 {[%clk 0:00:18]} 30... Nxf5
{[%clk 0:00:53.5]} 31. gxf5 {[%clk 0:00:18]} 31... Nf4 {[%clk 0:00:54.2]} 32.
Nd5 {[%clk 0:00:15.7]} 32... h3 {[%clk 0:00:53.5]} 33. Nxf4 {[%clk 0:00:14.4]}
33... Qxf4 {[%clk 0:00:51.3]} 34. Rg3 {[%clk 0:00:14.4]} 34... h2 {[%clk
0:00:46.2]} 35. Kxh2 {[%clk 0:00:10.1]} 35... Qh4+ {[%clk 0:00:40.4]} 36. Kg1
{[%clk 0:00:10.4]} 36... Kf7 {[%clk 0:00:36.9]} 37. b6 {[%clk 0:00:10.6]} 37...
Bh6 {[%clk 0:00:36.2]} 38. b7 {[%clk 0:00:10.5]} 38... Bf4 {[%clk 0:00:36.8]}
39. b8=Q {[%clk 0:00:09.8]} 39... Bxg3 {[%clk 0:00:36.9]} 40. Rb7+ {[%clk
0:00:09.5]} 40... Kf6 {[%clk 0:00:37]} 41. Qf8+ {[%clk 0:00:08.8]} 41... Kg5
{[%clk 0:00:36.9]} 42. Qg7+ {[%clk 0:00:07.3]} 42... Kf4 {[%clk 0:00:37.6]} 43.
Qxg3+ {[%clk 0:00:07.5]} 43... Qxg3+ {[%clk 0:00:35.6]} 44. fxg3+ {[%clk
0:00:08.4]} 44... Kxg3 {[%clk 0:00:36.3]} 45. Rg7+ {[%clk 0:00:08.6]} 45... Kf4
{[%clk 0:00:36.7]} 46. f6 {[%clk 0:00:09.1]} 46... Rg2+ {[%clk 0:00:37.1]} 47.
Rxg2 {[%clk 0:00:08.4]} 47... Ke3 {[%clk 0:00:35.4]} 48. f7 {[%clk 0:00:09.3]}
48... c4 {[%clk 0:00:35.6]} 49. f8=Q {[%clk 0:00:09.2]} 49... cxd3 {[%clk
0:00:36.3]} 50. Q8xf3# {[%clk 0:00:09.4]} 1-0

[Event "*** Titled Tuesday Blitz"]
[Site "Chess.com"]
[Date "2020.11.03"]
[Round "9"]
[White "Alexsur1981"]
[Black "PSvidler"]
[Result "1-0"]
[WhiteElo "2805"]
[BlackElo "2880"]
[TimeControl "180+1"]
[EndTime "11:49:05 PST"]
[Termination "Alexsur1981 won by resignation"]

1. e4 {[%clk 0:03:00.9]} 1... g6 {[%clk 0:02:52.2]} 2. d4 {[%clk 0:02:59.4]}
2... Bg7 {[%clk 0:02:52.5]} 3. c4 {[%clk 0:03:00]} 3... d6 {[%clk 0:02:41.5]} 4.
Nc3 {[%clk 0:02:59.7]} 4... Nc6 {[%clk 0:02:29.4]} 5. Nge2 {[%clk 0:02:58.7]}
5... e5 {[%clk 0:02:26.8]} 6. d5 {[%clk 0:02:58.7]} 6... Nce7 {[%clk 0:02:26.6]}
7. Be3 {[%clk 0:02:55.7]} 7... f5 {[%clk 0:02:23.2]} 8. f3 {[%clk 0:02:56]} 8...
Bh6 {[%clk 0:02:23.3]} 9. Bxh6 {[%clk 0:02:52.8]} 9... Nxh6 {[%clk 0:02:23.4]}
10. Qd2 {[%clk 0:02:52.9]} 10... Nf7 {[%clk 0:02:23.4]} 11. h4 {[%clk
0:02:50.5]} 11... O-O {[%clk 0:02:18.9]} 12. O-O-O {[%clk 0:02:42.5]} 12... h6
{[%clk 0:02:06.4]} 13. g3 {[%clk 0:02:40.3]} 13... Kg7 {[%clk 0:02:06]} 14. Kb1
{[%clk 0:02:32.6]} 14... c5 {[%clk 0:02:00.9]} 15. Nc1 {[%clk 0:02:26.9]} 15...
Ng8 {[%clk 0:01:55.2]} 16. Bd3 {[%clk 0:02:23.6]} 16... Nf6 {[%clk 0:01:44.7]}
17. N1e2 {[%clk 0:02:22.5]} 17... fxe4 {[%clk 0:01:40.9]} 18. Nxe4 {[%clk
0:02:22]} 18... Bf5 {[%clk 0:01:39]} 19. N2c3 {[%clk 0:02:20.1]} 19... Qe7
{[%clk 0:01:22.4]} 20. g4 {[%clk 0:02:17.5]} 20... Bxe4 {[%clk 0:01:22.2]} 21.
Nxe4 {[%clk 0:02:18]} 21... Nxe4 {[%clk 0:01:16.7]} 22. Bxe4 {[%clk 0:02:18.9]}
22... Nh8 {[%clk 0:01:16.2]} 23. h5 {[%clk 0:02:15.5]} 23... g5 {[%clk
0:01:14.7]} 24. Qe3 {[%clk 0:02:13.7]} 24... Rf4 {[%clk 0:01:13.9]} 25. Rd3
{[%clk 0:02:13.1]} 25... Raf8 {[%clk 0:00:58.2]} 26. Ra3 {[%clk 0:02:08.3]}
26... b6 {[%clk 0:00:58.2]} 27. Re1 {[%clk 0:01:55.7]} 27... Nf7 {[%clk
0:00:57.8]} 28. Qb3 {[%clk 0:01:53.3]} 28... Nd8 {[%clk 0:00:57.6]} 29. Qa4
{[%clk 0:01:48.9]} 29... R8f7 {[%clk 0:00:56.6]} 30. Ree3 {[%clk 0:01:44.4]}
30... Qb7 {[%clk 0:00:52.4]} 31. Qe8 {[%clk 0:01:38.9]} 31... Qd7 {[%clk
0:00:52.2]} 32. Qxd7 {[%clk 0:01:37.1]} 32... Rxd7 {[%clk 0:00:52]} 33. Ra6
{[%clk 0:01:35.5]} 33... Rff7 {[%clk 0:00:49.6]} 34. Bf5 {[%clk 0:01:25]} 34...
Rc7 {[%clk 0:00:48.7]} 35. Rea3 {[%clk 0:01:19.5]} 35... Rfe7 {[%clk 0:00:45.8]}
36. Kc2 {[%clk 0:01:17.7]} 36... e4 {[%clk 0:00:45.9]} 37. fxe4 {[%clk
0:01:14.6]} 37... Nf7 {[%clk 0:00:45.8]} 38. Kc3 {[%clk 0:01:10.2]} 38... Kf6
{[%clk 0:00:45.5]} 39. Rb3 {[%clk 0:01:06.9]} 39... Ke5 {[%clk 0:00:45.4]} 40.
a4 {[%clk 0:01:07.1]} 40... Kf4 {[%clk 0:00:43.5]} 41. a5 {[%clk 0:01:07.2]}
41... bxa5 {[%clk 0:00:43.3]} 42. Rxa5 {[%clk 0:01:04.8]} 42... Ne5 {[%clk
0:00:30.5]} 43. Ra6 {[%clk 0:01:04.2]} 43... Nxg4 {[%clk 0:00:30.5]} 44. Rxd6
{[%clk 0:01:03.4]} 44... Ne3 {[%clk 0:00:30.5]} 45. Rxh6 {[%clk 0:00:57]} 45...
Nxf5 {[%clk 0:00:28.8]} 46. exf5 {[%clk 0:00:57.9]} 46... Re2 {[%clk 0:00:25.5]}
47. Re6 {[%clk 0:00:54.5]} 47... Rh2 {[%clk 0:00:23.7]} 48. f6 {[%clk
0:00:53.9]} 48... g4 {[%clk 0:00:23]} 49. Rb8 {[%clk 0:00:46.3]} 49... g3 {[%clk
0:00:21.3]} 50. Re7 {[%clk 0:00:45.2]} 50... g2 {[%clk 0:00:16.3]} 51. Rg8
{[%clk 0:00:45.1]} 51... Rh3+ {[%clk 0:00:16.7]} 52. Kc2 {[%clk 0:00:45.4]}
52... Rg3 {[%clk 0:00:16.9]} 53. Rxg3 {[%clk 0:00:45]} 53... Kxg3 {[%clk
0:00:17]} 54. Rxc7 {[%clk 0:00:45.6]} 1-0